Workbook

Sheet Cover
B3: Excel Basics 10: Date & Time Number Formatting, Formulas, Functions & Calculations
B4: Excel Basics 10: What is Under Date & Time Number Formatting? And How to Make Date & Time Formulas!
P6: Office 2016 Video #22
O8: Topics:
O9: 1) Date Number Formatting
O10: 2) Number Days Invoice Late Calc
O11: 3) Number Days in Project Calc
O12: 4) Loan Maturity Date Calc
O13: 5) EDATE Function
O14: 6) EOMONTH Function
O15: 7) Time Number Formatting
O16: 8) Hours Worked Calc
O17: 9) Hours Worked Before and After Lunch Calc
O18: 10) Full Payroll Time Sheet Net Pay Template

Sheet Date NF & Calcs
A1: Date Number Formatting:
A2: Under dates, there are serial numbers, which are the number of days since Dec 31, 1899.
A4: Date:
A5: Date:
A6: Date:
A8: Date | B8: Actual Number in Cell
A9: 1900-01-01 | B9: 1
A10: 1900-01-02 | B10: 2
A11: 2017-10-28 | B11: 43036
A13: Why? So we can do Date Math!
A15: Invoice due date | E15: Enter dates with forward slashes (there are other ways also)
A16: Today | E16: Keyboard for today's date: Ctrl + ;
A17: Days past due | D17: =IF(_xlfn.ISFORMULA(B17),_xlfn.FORMULATEXT(B17),"") ->  | E17: Important Formula: Days between dates = Later Date - Earlier Date
A19: Invoice due date | B19: 2017-09-12
A20: Today | D20: =IF(_xlfn.ISFORMULA(B20),_xlfn.FORMULATEXT(B20),"") ->  | E20: TODAY function dynamically puts today's date in the cell and updates each new day you open the Workbook file.
A21: Days past due | D21: =IF(_xlfn.ISFORMULA(B21),_xlfn.FORMULATEXT(B21),"") ->  | E21: =TODAY() is an argumentless function
A23: Loan issue date | B23: 2017-09-02
A24: Days until loan due | B24: 120
A25: Maturity Date | D25: =IF(_xlfn.ISFORMULA(B25),_xlfn.FORMULATEXT(B25),"") ->  | E25: You can add numbers to dates
A27: Project Start Date | B27: 2017-10-30
A28: Project End Date | B28: 2018-01-13
A29: # days for project | D29: =IF(_xlfn.ISFORMULA(B29),_xlfn.FORMULATEXT(B29),"") ->  | E29: Important Formula: Days between dates where start date IS included= Later Date - Earlier Date + 1
A31: Calculate the Due Date if the invoice contract says that the amount is due on the same day, two month's ahead.
A33: InvoiceDate | B33: 2017-10-27 | E33: Due in 2 Months
A34: Due Date | D34: =IF(_xlfn.ISFORMULA(B34),_xlfn.FORMULATEXT(B34),"") ->  | E34: EDATE function allows you to take a date and get the same day in a future or past month.
E35: =EDATE(Date,2) jumps two months ahead. =EDATE(Date,-2) jumps two months backwards.
A37: Calculate the Due Date if the invoice contract says that the amount is due at the end of the month.
A39: InvoiceDate | B39: 2016-02-03
A40: Due Date | D40: =IF(_xlfn.ISFORMULA(B40),_xlfn.FORMULATEXT(B40),"") ->  | E40: EOMONTH allows you to take a date get the end of the month date for the current month, a future month, or a past month.
E41: =EOMONTH(Date,0) gives you the end of the month
E42: =EOMONTH(Date,1) gives you the end of next month
E43: =EOMONTH(Date,-1) gives you the end of last month.
D45: Customer | E45: Amount Owed | F45: Invoice Due Date | G45: Today | H45: Number Days Invoice Late
D46: Cicely Lange | E46: 2063 | F46: 2017-09-18 | G46: =TODAY() -> 2019-10-29 | H46: =G46-F46 -> 771
D47: Larhonda Goode | E47: 2084.55 | F47: 2017-07-02 | G47: =TODAY() -> 2019-10-29 | H47: =G47-F47 -> 849
D48: Lonna Clemens | E48: 1338.51 | F48: 2017-09-09 | G48: 2019-10-29 | H48: 780
D49: Vanesa Herzog | E49: 1967.55 | F49: 2017-08-19 | G49: 2019-10-29 | H49: 801
D50: Alessandra Reis | E50: 2213.87 | F50: 2017-10-18 | G50: 2019-10-29 | H50: 741
D51: Ashanti Anglin | E51: 1570.3 | F51: 2017-07-05 | G51: 2019-10-29 | H51: 846
D52: Kamala Leyva | E52: 1652.3 | F52: 2017-10-11 | G52: 2019-10-29 | H52: 748
D53: Robena Briseno | E53: 1467.72 | F53: 2017-07-06 | G53: 2019-10-29 | H53: 845
D54: Eryn Huntington | E54: 1911.15 | F54: 2017-07-19 | G54: 2019-10-29 | H54: 832
D55: Clarita Bagwell | E55: 597.07 | F55: 2017-08-10 | G55: 2019-10-29 | H55: 810
D56: Antwan Steel | E56: 608.6 | F56: 2017-10-04 | G56: 2019-10-29 | H56: 755
D57: Alfonzo Chance | E57: 1390.45 | F57: 2017-10-15 | G57: 2019-10-29 | H57: 744
D58: Muoi Parrish | E58: 419.68 | F58: 2017-08-12 | G58: 2019-10-29 | H58: 808
D59: Chang Teel | E59: 1210.17 | F59: 2017-10-15 | G59: 2019-10-29 | H59: 744
D60: Hsiu Wallis | E60: 1815.46 | F60: 2017-10-14 | G60: 2019-10-29 | H60: 745
D61: Rosalyn Huffman | E61: 1803.3 | F61: 2017-08-27 | G61: 2019-10-29 | H61: 793

Sheet Date NF & Calcs (an)
A1: Date Number Formatting:
A2: Under dates, there are serial numbers, which are the number of days since Dec 31, 1899.
A4: Date: | B4: 2017-10-28
A5: Date: | B5: 43036
A6: Date: | B6: 2017-10-28
A8: Date | B8: Actual Number in Cell
A9: 1900-01-01 | B9: 1
A10: 1900-01-02 | B10: 2
A11: 2017-10-28 | B11: 43036
A13: Why? So we can do Date Math!
A15: Invoice due date | B15: 2017-09-12 | E15: Enter dates with forward slashes (there are other ways also)
A16: Today | B16: 2017-10-28 | E16: Keyboard for today's date: Ctrl + ;
A17: Days past due | B17: =B16-B15 -> 46 | D17: =IF(_xlfn.ISFORMULA(B17),_xlfn.FORMULATEXT(B17),"") -> =B16-B15 | E17: Important Formula: Days between dates = Later Date - Earlier Date
A19: Invoice due date | B19: 2017-09-12
A20: Today | B20: =TODAY() -> 2019-10-29 | D20: =IF(_xlfn.ISFORMULA(B20),_xlfn.FORMULATEXT(B20),"") -> =TODAY() | E20: TODAY function dynamically puts today's date in the cell and updates each new day you open the Workbook file.
A21: Days past due | B21: =B20-B19 -> 777 | D21: =IF(_xlfn.ISFORMULA(B21),_xlfn.FORMULATEXT(B21),"") -> =B20-B19 | E21: =TODAY() is an argumentless function
A23: Loan issue date | B23: 2017-09-02
A24: Days until loan due | B24: 120
A25: Maturity Date | B25: =B23+B24 -> 2017-12-31 | D25: =IF(_xlfn.ISFORMULA(B25),_xlfn.FORMULATEXT(B25),"") -> =B23+B24 | E25: You can add numbers to dates
A27: Project Start Date | B27: 2017-10-30
A28: Project End Date | B28: 2018-01-13
A29: # days for project | B29: =B28-B27+1 -> 76 | D29: =IF(_xlfn.ISFORMULA(B29),_xlfn.FORMULATEXT(B29),"") -> =B28-B27+1 | E29: Important Formula: Days between dates where start date IS included= Later Date - Earlier Date + 1
A31: Calculate the Due Date if the invoice contract says that the amount is due on the same day, two month's ahead.
A33: InvoiceDate | B33: 2017-10-27 | E33: Due in 2 Months
A34: Due Date | B34: =EDATE(B33,2) -> 2017-12-27 | D34: =IF(_xlfn.ISFORMULA(B34),_xlfn.FORMULATEXT(B34),"") -> =EDATE(B33,2) | E34: EDATE function allows you to take a date and get the same day in a future or past month.
E35: =EDATE(Date,2) jumps two months ahead. =EDATE(Date,-2) jumps two months backwards.
A37: Calculate the Due Date if the invoice contract says that the amount is due at the end of the month.
A39: InvoiceDate | B39: 2016-02-03
A40: Due Date | B40: =EOMONTH(B39,0) -> 2016-02-29 | D40: =IF(_xlfn.ISFORMULA(B40),_xlfn.FORMULATEXT(B40),"") -> =EOMONTH(B39,0) | E40: EOMONTH allows you to take a date get the end of the month date for the current month, a future month, or a past month.
E41: =EOMONTH(Date,0) gives you the end of the month
E42: =EOMONTH(Date,1) gives you the end of next month
E43: =EOMONTH(Date,-1) gives you the end of last month.
D45: Customer | E45: Amount Owed | F45: Invoice Due Date | G45: Today | H45: Number Days Invoice Late
D46: Cicely Lange | E46: 2063 | F46: 2017-09-18 | G46: =TODAY() -> 2019-10-29 | H46: =G46-F46 -> 771
D47: Larhonda Goode | E47: 2084.55 | F47: 2017-07-02 | G47: =TODAY() -> 2019-10-29 | H47: =G47-F47 -> 849
D48: Lonna Clemens | E48: 1338.51 | F48: 2017-09-09 | G48: 2019-10-29 | H48: 780
D49: Vanesa Herzog | E49: 1967.55 | F49: 2017-08-19 | G49: 2019-10-29 | H49: 801
D50: Alessandra Reis | E50: 2213.87 | F50: 2017-10-18 | G50: 2019-10-29 | H50: 741
D51: Ashanti Anglin | E51: 1570.3 | F51: 2017-07-05 | G51: 2019-10-29 | H51: 846
D52: Kamala Leyva | E52: 1652.3 | F52: 2017-10-11 | G52: 2019-10-29 | H52: 748
D53: Robena Briseno | E53: 1467.72 | F53: 2017-07-06 | G53: 2019-10-29 | H53: 845
D54: Eryn Huntington | E54: 1911.15 | F54: 2017-07-19 | G54: 2019-10-29 | H54: 832
D55: Clarita Bagwell | E55: 597.07 | F55: 2017-08-10 | G55: 2019-10-29 | H55: 810
D56: Antwan Steel | E56: 608.6 | F56: 2017-10-04 | G56: 2019-10-29 | H56: 755
D57: Alfonzo Chance | E57: 1390.45 | F57: 2017-10-15 | G57: 2019-10-29 | H57: 744
D58: Muoi Parrish | E58: 419.68 | F58: 2017-08-12 | G58: 2019-10-29 | H58: 808
D59: Chang Teel | E59: 1210.17 | F59: 2017-10-15 | G59: 2019-10-29 | H59: 744
D60: Hsiu Wallis | E60: 1815.46 | F60: 2017-10-14 | G60: 2019-10-29 | H60: 745
D61: Rosalyn Huffman | E61: 1803.3 | F61: 2017-08-27 | G61: 2019-10-29 | H61: 793

Sheet Time NF & Calcs
A1: Time Number Format:
A2: Under the Time Number Format is a serial number that represents the proportion of one 24-hour day
A3: Time serial number = Proportion of the 24 hour day
A5: Enter time as: hours, colon, minutes, colon, seconds, then a space, and AM or PM (there are other methods also)
A7: Enter 8:00 AM Time ==>>
A8: Enter 8:00 AM Again ==>> Then Apply General NF
A9: Type formula =8/24 | E9: Apply General Number Format = Ctrl + Shift + ~
A10: Type formula Again ==>> Then Time NF ==>>
A12: Time | B12: Proportion of 24 hour day | C12: Reduced to: | D12: Reduced to: | E12: Actual Number in Cell
A13: 00:00:00 | B13: 0 | E13: =A13 -> 0
A14: 08:00:00 | B14: =8/24 -> 0.3333333333 | C14: =1/3 -> 0.3333333333 | E14: =8/24 -> 0.3333333333
A15: 12:00:00 | B15: =12/24 -> 0.5 | C15: =1/2 -> 0.5 | E15: =12/24 -> 0.5
A16: 15:00:00 | B16: (12+3)/24 | C16: =15/24 -> 0.625 | D16: =15/24 -> 0.625 | E16: =15/24 -> 0.625
A17: 15:15:00 | B17: (12+3.25)/24 | E17: 0.6354166667
A19: Notice that we took a number and divided by 24!!!!
A20: This means that if we want to do Time Math and get hours as a result, we must multiply the decimal time answer by 24!!!!
A22: Wage per hour | B22: 21.25
A23: Time In
A24: Time Out
A25: Total Hours worked | C25: =IF(_xlfn.ISFORMULA(B25),_xlfn.FORMULATEXT(B25),"") ->  | D25: Important Formula: Hours Worked = (Later Time - Earlier Time)*24
A26: Gross Pay | C26: =IF(_xlfn.ISFORMULA(B26),_xlfn.FORMULATEXT(B26),"") -> 
A28: Homework tracker:
A29: Start Time | B29: 08:30:00
A30: End Time | B30: 11:00:00
A31: Hours worked | C31: =IF(_xlfn.ISFORMULA(B31),_xlfn.FORMULATEXT(B31),"") -> 
A32: Start Time | B32: 22:00:00
A33: End Time | B33: 23:15:00
A34: Hours worked | C34: =IF(_xlfn.ISFORMULA(B34),_xlfn.FORMULATEXT(B34),"") -> 
A35: Total
B36: or
A37: Total | C37: =IF(_xlfn.ISFORMULA(B37),_xlfn.FORMULATEXT(B37),"") -> 
G40: Tax Rate
A41: Payroll Example: | G41: 0.0765
A43: Employee | B43: Wage | C43: Time In | D43: Time Out | E43: Hours Worked | F43: Gross Pay | G43: Deduction | H43: Day's Pay
A44: Carroll Stanley | B44: 24.94 | C44: 08:00:00 | D44: 15:30:00
A45: Anne Ramos | B45: 18.14 | C45: 09:00:00 | D45: 14:25:00
A46: Blanche Sanchez | B46: 17.94 | C46: 07:30:00 | D46: 15:15:00
A47: Karla Fletcher | B47: 26.7 | C47: 08:00:00 | D47: 14:10:00
A48: Devin Smith | B48: 24.3 | C48: 09:00:00 | D48: 14:30:00
A49: Edna Hansen | B49: 22.85 | C49: 08:00:00 | D49: 16:45:00
A50: Moses Swanson | B50: 26.98 | C50: 06:30:00 | D50: 11:35:00
A51: Sherman Moss | B51: 17.71 | C51: 08:00:00 | D51: 13:00:00
A52: Amber Rios | B52: 20.12 | C52: 07:00:00 | D52: 16:30:00
A53: Lindsey Powers | B53: 23.69 | C53: 08:00:00 | D53: 15:00:00

Sheet Time NF & Calcs (an)
A1: Time Number Format:
A2: Under the Time Number Format is a serial number that represents the proportion of one 24-hour day
A3: Time serial number = Proportion of the 24 hour day
A5: Enter time as: hours, colon, minutes, colon, seconds, then a space, and AM or PM (there are other methods also)
A7: Enter 8:00 AM Time ==>> | B7: 08:00:00 | D7: 2017-12-02
A8: Enter 8:00 AM Again ==>> Then Apply General NF | B8: 0.3333333333 | D8: 12?2/2017
A9: Type formula =8/24 | B9: =8/24 -> 0.3333333333 | E9: Apply General Number Format = Ctrl + Shift + ~
A10: Type formula Again ==>> Then Time NF ==>> | B10: =8/24 -> 08:00:00
A12: Time | B12: Proportion of 24 hour day | C12: Reduced to: | D12: Reduced to: | E12: Actual Number in Cell
A13: 00:00:00 | B13: 0 | E13: =A13 -> 0
A14: 08:00:00 | B14: =8/24 -> 0.3333333333 | C14: =1/3 -> 0.3333333333 | E14: =8/24 -> 0.3333333333
A15: 12:00:00 | B15: =12/24 -> 0.5 | C15: =1/2 -> 0.5 | E15: =12/24 -> 0.5
A16: 15:00:00 | B16: (12+3)/24 | C16: =15/24 -> 0.625 | D16: =15/24 -> 0.625 | E16: =15/24 -> 0.625
A17: 15:15:00 | B17: (12+3.25)/24 | E17: 0.6354166667
A19: Notice that we took a number and divided by 24!!!!
A20: This means that if we want to do Time Math and get hours as a result, we must multiply the decimal time answer by 24!!!!
A22: Wage per hour | B22: 21.25
A23: Time In | B23: 08:00:00
A24: Time Out | B24: 12:00:00
A25: Total Hours worked | B25: =(B24-B23)*24 -> 4 | C25: =IF(_xlfn.ISFORMULA(B25),_xlfn.FORMULATEXT(B25),"") -> =(B24-B23)*24 | D25: Important Formula: Hours Worked = (Later Time - Earlier Time)*24
A26: Gross Pay | B26: =B25*B22 -> 85 | C26: =IF(_xlfn.ISFORMULA(B26),_xlfn.FORMULATEXT(B26),"") -> =B25*B22
A28: Homework tracker:
A29: Start Time | B29: 08:30:00
A30: End Time | B30: 11:00:00
A31: Hours worked | B31: =(B30-B29)*24 -> 2.5 | C31: =IF(_xlfn.ISFORMULA(B31),_xlfn.FORMULATEXT(B31),"") -> =(B30-B29)*24
A32: Start Time | B32: 22:00:00
A33: End Time | B33: 23:15:00
A34: Hours worked | B34: =(B33-B32)*24 -> 1.25 | C34: =IF(_xlfn.ISFORMULA(B34),_xlfn.FORMULATEXT(B34),"") -> =(B33-B32)*24
A35: Total | B35: =B34+B31 -> 3.75 | C35: =B34+B31
B36: or
A37: Total | B37: =SUM(B30-B29,B33-B32)*24 -> 3.75 | C37: =IF(_xlfn.ISFORMULA(B37),_xlfn.FORMULATEXT(B37),"") -> =SUM(B30-B29,B33-B32)*24
G40: Tax Rate
A41: Payroll Example: | G41: 0.0765
A43: Employee | B43: Wage | C43: Time In | D43: Time Out | E43: Hours Worked | F43: Gross Pay | G43: Deduction | H43: Day's Pay
A44: Carroll Stanley | B44: 24.94 | C44: 08:00:00 | D44: 15:30:00 | E44: =(D44-C44)*24 -> 7.5 | F44: =ROUND(E44*B44,2) -> 187.05 | G44: =ROUND(F44*$G$41,2) -> 14.31 | H44: =F44-G44 -> 172.74
A45: Anne Ramos | B45: 18.14 | C45: 09:00:00 | D45: 14:25:00 | E45: =(D45-C45)*24 -> 5.416666667 | F45: =ROUND(E45*B45,2) -> 98.26 | G45: =ROUND(F45*$G$41,2) -> 7.52 | H45: =F45-G45 -> 90.74
A46: Blanche Sanchez | B46: 17.94 | C46: 07:30:00 | D46: 15:15:00 | E46: 7.75 | F46: 139.04 | G46: 10.64 | H46: 128.4
A47: Karla Fletcher | B47: 26.7 | C47: 08:00:00 | D47: 14:10:00 | E47: 6.166666667 | F47: 164.65 | G47: 12.6 | H47: 152.05
A48: Devin Smith | B48: 24.3 | C48: 09:00:00 | D48: 14:30:00 | E48: 5.5 | F48: 133.65 | G48: 10.22 | H48: 123.43
A49: Edna Hansen | B49: 22.85 | C49: 08:00:00 | D49: 16:45:00 | E49: 8.75 | F49: 199.94 | G49: 15.3 | H49: 184.64
A50: Moses Swanson | B50: 26.98 | C50: 06:30:00 | D50: 11:35:00 | E50: 5.083333333 | F50: 137.15 | G50: 10.49 | H50: 126.66
A51: Sherman Moss | B51: 17.71 | C51: 08:00:00 | D51: 13:00:00 | E51: 5 | F51: 88.55 | G51: 6.77 | H51: 81.78
A52: Amber Rios | B52: 20.12 | C52: 07:00:00 | D52: 16:30:00 | E52: 9.5 | F52: 191.14 | G52: 14.62 | H52: 176.52
A53: Lindsey Powers | B53: 23.69 | C53: 08:00:00 | D53: 15:00:00 | E53: 7 | F53: 165.83 | G53: =ROUND(F53*$G$41,2) -> 12.69 | H53: 153.14

Sheet TimeSheet
G1: Tax Rate
G2: 0.0765
A4: Employee | B4: Wage | C4: Time In | D4: Time Out | E4: Hours Worked | F4: Gross Pay | G4: Deduction | H4: Day's Pay
A5: Carroll Stanley | B5: 24.94 | C5: 08:00:00 | D5: 15:30:00 | E5: =(D5-C5)*24 -> 7.5 | F5: =ROUND(E5*B5,2) -> 187.05 | G5: =ROUND(F5*$G$2,2) -> 14.31 | H5: =F5-G5 -> 172.74
A6: Anne Ramos | B6: 18.14 | C6: 09:00:00 | D6: 14:30:00 | E6: 5.5 | F6: 99.77 | G6: =ROUND(F6*$G$2,2) -> 7.63 | H6: 92.14
A7: Blanche Sanchez | B7: 17.94 | C7: 07:30:00 | D7: 15:00:00 | E7: 7.5 | F7: 134.55 | G7: 10.29 | H7: 124.26
A8: Karla Fletcher | B8: 26.7 | C8: 08:00:00 | D8: 13:30:00 | E8: 5.5 | F8: 146.85 | G8: 11.23 | H8: 135.62
A9: Devin Smith | B9: 24.3 | C9: 09:00:00 | D9: 14:30:00 | E9: 5.5 | F9: 133.65 | G9: 10.22 | H9: 123.43
A10: Edna Hansen | B10: 22.85 | C10: 08:00:00 | D10: 18:00:00 | E10: 10 | F10: 228.5 | G10: 17.48 | H10: 211.02
A11: Moses Swanson | B11: 26.98 | C11: 06:30:00 | D11: 11:30:00 | E11: 5 | F11: 134.9 | G11: 10.32 | H11: 124.58
A12: Sherman Moss | B12: 17.71 | C12: 08:00:00 | D12: 13:00:00 | E12: 5 | F12: 88.55 | G12: 6.77 | H12: 81.78
A13: Amber Rios | B13: 20.12 | C13: 07:00:00 | D13: 16:30:00 | E13: 9.5 | F13: 191.14 | G13: 14.62 | H13: 176.52
A14: Lindsey Powers | B14: 23.69 | C14: 08:00:00 | D14: 15:00:00 | E14: 7 | F14: 165.83 | G14: 12.69 | H14: 153.14

Sheet HW ==>>

Sheet HW(1)
A1: In the below table, create a formula for today's date and then calculate the number of days the invoice is late.
A4: Customer | B4: Invoice # | C4: Amount Owed | D4: Invoice Due Date | E4: Today | F4: Number Days Invoice Late
A5: Ossie Kimbrough | B5: 2693 | C5: 181.82 | D5: 2017-08-19
A6: Adrien Dougherty | B6: 3319 | C6: 303.89 | D6: 2017-06-26
A7: Elwood Koehler | B7: 3587 | C7: 177.74 | D7: 2017-08-22
A8: Senaida Battles | B8: 3950 | C8: 315.25 | D8: 2017-08-14
A9: Claudette Barela | B9: 3903 | C9: 761.62 | D9: 2017-09-16
A10: Providencia Esposito | B10: 3222 | C10: 759.31 | D10: 2017-06-23
A11: Corliss Coffin | B11: 3459 | C11: 581.59 | D11: 2017-09-14
A12: Rafaela Sparkman | B12: 3247 | C12: 227.66 | D12: 2017-06-09
A13: Marvis Block | B13: 3092 | C13: 459.95 | D13: 2017-07-02
A14: Drucilla Ragsdale | B14: 2867 | C14: 574.95 | D14: 2017-07-18

Sheet HW(1an)
A1: In the below table, create a formula for today's date and then calculate the number of days the invoice is late.
A4: Customer | B4: Invoice # | C4: Amount Owed | D4: Invoice Due Date | E4: Today | F4: Number Days Invoice Late
A5: Ossie Kimbrough | B5: 2693 | C5: 181.82 | D5: 2017-08-19 | E5: =TODAY() -> 2019-10-29 | F5: =E5-D5 -> 801
A6: Adrien Dougherty | B6: 3319 | C6: 303.89 | D6: 2017-06-26 | E6: =TODAY() -> 2019-10-29 | F6: 855
A7: Elwood Koehler | B7: 3587 | C7: 177.74 | D7: 2017-08-22 | E7: 2019-10-29 | F7: 798
A8: Senaida Battles | B8: 3950 | C8: 315.25 | D8: 2017-08-14 | E8: 2019-10-29 | F8: 806
A9: Claudette Barela | B9: 3903 | C9: 761.62 | D9: 2017-09-16 | E9: 2019-10-29 | F9: 773
A10: Providencia Esposito | B10: 3222 | C10: 759.31 | D10: 2017-06-23 | E10: 2019-10-29 | F10: 858
A11: Corliss Coffin | B11: 3459 | C11: 581.59 | D11: 2017-09-14 | E11: 2019-10-29 | F11: 775
A12: Rafaela Sparkman | B12: 3247 | C12: 227.66 | D12: 2017-06-09 | E12: 2019-10-29 | F12: 872
A13: Marvis Block | B13: 3092 | C13: 459.95 | D13: 2017-07-02 | E13: 2019-10-29 | F13: 849
A14: Drucilla Ragsdale | B14: 2867 | C14: 574.95 | D14: 2017-07-18 | E14: 2019-10-29 | F14: 833

Sheet HW(2)
A1: In the below table, create a formula to calcualte Number of Days in Project.
A4: Project Address | B4: Projected Start Date | C4: Projected End Date | D4: Number Of Days in Project
A5: 9664 SE. Thomas St. | B5: 2018-02-18 | C5: 2018-04-28
A6: 92 Middle River Ave. | B6: 2017-11-27 | C6: 2018-07-04
A7: 7275 Belmont Lane | B7: 2018-03-08 | C7: 2018-11-12
A8: 9504 Grand St. | B8: 2017-12-01 | C8: 2018-06-16
A9: 8016 Applegate Court | B9: 2018-02-10 | C9: 2018-03-24
A10: 8 Canal Ave. | B10: 2018-01-23 | C10: 2018-03-18
A11: 28 Green Hill Lane | B11: 2018-01-28 | C11: 2018-03-04
A12: 26 West Purple Finch Ave. | B12: 2017-12-17 | C12: 2018-08-06
A13: 180 Augusta Ave. | B13: 2017-10-22 | C13: 2018-04-11
A14: 77 S. Sleepy Hollow Drive | B14: 2018-01-08 | C14: 2018-09-02

Sheet HW(2an)
A1: In the below table, create a formula to calcualte Number of Days in Project.
A4: Project Address | B4: Projected Start Date | C4: Projected End Date | D4: Number Of Days in Project
A5: 9664 SE. Thomas St. | B5: 2018-02-18 | C5: 2018-04-28 | D5: =C5-B5+1 -> 70
A6: 92 Middle River Ave. | B6: 2017-11-27 | C6: 2018-07-04 | D6: 220
A7: 7275 Belmont Lane | B7: 2018-03-08 | C7: 2018-11-12 | D7: 250
A8: 9504 Grand St. | B8: 2017-12-01 | C8: 2018-06-16 | D8: 198
A9: 8016 Applegate Court | B9: 2018-02-10 | C9: 2018-03-24 | D9: 43
A10: 8 Canal Ave. | B10: 2018-01-23 | C10: 2018-03-18 | D10: 55
A11: 28 Green Hill Lane | B11: 2018-01-28 | C11: 2018-03-04 | D11: 36
A12: 26 West Purple Finch Ave. | B12: 2017-12-17 | C12: 2018-08-06 | D12: 233
A13: 180 Augusta Ave. | B13: 2017-10-22 | C13: 2018-04-11 | D13: 172
A14: 77 S. Sleepy Hollow Drive | B14: 2018-01-08 | C14: 2018-09-02 | D14: 238

Sheet HW(3)
A1: Using one of Excel's Date Functions, calculate the Due Date if the invoice contract says that the amount is due on the same day, two month's ahead.
A3: InvoiceDate | B3: 2017-11-03
A4: Due Date
A6: Using one of Excel's Date Functions, calculate the Due Date if the invoice contract says that the amount is due at the end of the month.
A8: InvoiceDate | B8: 2017-11-03
A9: Due Date

Sheet HW(3an)
A1: Using one of Excel's Date Functions, calculate the Due Date if the invoice contract says that the amount is due on the same day, two month's ahead.
A3: InvoiceDate | B3: 2017-11-03
A4: Due Date | B4: =EDATE(B3,2) -> 2018-01-03
A6: Using one of Excel's Date Functions, calculate the Due Date if the invoice contract says that the amount is due at the end of the month.
A8: InvoiceDate | B8: 2017-11-03
A9: Due Date | B9: =EOMONTH(B8,0) -> 2017-11-30

Sheet HW(4)
A1: ="Create the formulas for the following columns: "&E6&" "&F6&" "&G6&" "&H6 -> Create the formulas for the following columns: Hours Worked Gross Pay Deduction Day's Pay
G3: Tax Rate
G4: 0.0765
A6: Employee | B6: Wage | C6: Time In | D6: Time Out | E6: Hours Worked | F6: Gross Pay | G6: Deduction | H6: Day's Pay
A7: Carroll Stanley | B7: 24.94 | C7: 08:00:00 | D7: 15:30:00
A8: Anne Ramos | B8: 18.14 | C8: 09:00:00 | D8: 14:30:00
A9: Blanche Sanchez | B9: 17.94 | C9: 07:30:00 | D9: 15:00:00
A10: Karla Fletcher | B10: 26.7 | C10: 08:00:00 | D10: 13:30:00
A11: Devin Smith | B11: 24.3 | C11: 09:00:00 | D11: 14:30:00
A12: Edna Hansen | B12: 22.85 | C12: 08:00:00 | D12: 18:00:00
A13: Moses Swanson | B13: 26.98 | C13: 06:30:00 | D13: 11:30:00
A14: Sherman Moss | B14: 17.71 | C14: 08:00:00 | D14: 13:00:00
A15: Amber Rios | B15: 20.12 | C15: 07:00:00 | D15: 16:30:00
A16: Lindsey Powers | B16: 23.69 | C16: 08:00:00 | D16: 15:00:00

Sheet HW(4an)
A1: ="Create the formulas for the following columns: "&E6&" "&F6&" "&G6&" "&H6 -> Create the formulas for the following columns: Hours Worked Gross Pay Deduction Day's Pay
G3: Tax Rate
G4: 0.0765
A6: Employee | B6: Wage | C6: Time In | D6: Time Out | E6: Hours Worked | F6: Gross Pay | G6: Deduction | H6: Day's Pay
A7: Carroll Stanley | B7: 24.94 | C7: 08:00:00 | D7: 15:30:00 | E7: =(D7-C7)*24 -> 7.5 | F7: =ROUND(E7*B7,2) -> 187.05 | G7: =ROUND(F7*$G$4,2) -> 14.31 | H7: =F7-G7 -> 172.74
A8: Anne Ramos | B8: 18.14 | C8: 09:00:00 | D8: 14:30:00 | E8: 5.5 | F8: 99.77 | G8: =ROUND(F8*$G$4,2) -> 7.63 | H8: 92.14
A9: Blanche Sanchez | B9: 17.94 | C9: 07:30:00 | D9: 15:00:00 | E9: 7.5 | F9: 134.55 | G9: 10.29 | H9: 124.26
A10: Karla Fletcher | B10: 26.7 | C10: 08:00:00 | D10: 13:30:00 | E10: 5.5 | F10: 146.85 | G10: 11.23 | H10: 135.62
A11: Devin Smith | B11: 24.3 | C11: 09:00:00 | D11: 14:30:00 | E11: 5.5 | F11: 133.65 | G11: 10.22 | H11: 123.43
A12: Edna Hansen | B12: 22.85 | C12: 08:00:00 | D12: 18:00:00 | E12: 10 | F12: 228.5 | G12: 17.48 | H12: 211.02
A13: Moses Swanson | B13: 26.98 | C13: 06:30:00 | D13: 11:30:00 | E13: 5 | F13: 134.9 | G13: 10.32 | H13: 124.58
A14: Sherman Moss | B14: 17.71 | C14: 08:00:00 | D14: 13:00:00 | E14: 5 | F14: 88.55 | G14: 6.77 | H14: 81.78
A15: Amber Rios | B15: 20.12 | C15: 07:00:00 | D15: 16:30:00 | E15: 9.5 | F15: 191.14 | G15: 14.62 | H15: 176.52
A16: Lindsey Powers | B16: 23.69 | C16: 08:00:00 | D16: 15:00:00 | E16: 7 | F16: 165.83 | G16: 12.69 | H16: 153.14

Sheet Do Formulas See NF
A1: Do Formulas "see" Number Formatting?
A3: Price | B3: Quantity | C3: Total
A4: 99.5 | B4: 2 | C4: =B4*A4 -> 199 | E4: Solution: Increase Decimal on Price so Formatting does not mislead you.
A6: Payroll:
A7: Employee | B7: Gross Pay | C7: Tax Deduction | D7: Tax Deduction
A8: Lillian Holt | B8: 689.25 | C8: =B8*$B$13 -> 52.727625 | D8: =ROUND(B8*$B$13,2) -> 52.73
A9: Jasmine Phelps | B9: 765.71 | C9: =B9*$B$13 -> 58.576815 | D9: =ROUND(B9*$B$13,2) -> 58.58
A10: Sadie Hudson | B10: 687.43 | C10: =B10*$B$13 -> 52.588395 | D10: =ROUND(B10*$B$13,2) -> 52.59
B11: Total | C11: =SUM(C8:C10) -> 163.892835 | D11: =SUM(D8:D10) -> 163.9
A13: Tax Rate | B13: 0.0765
A15: Solution: Because we are adding with SUM function, and we have extra decimals past penny position, we MUST use ROUND.
